lending/lending_fUSD_20250408
["ID","MTS","AMOUNT","RATE_DAILY","PERIOD"]
[357518401,1744113048403,-151.0,0.00025043,2]
[357518402,1744113048413,-3957.0,0.00025043,2]
[357518403,1744113048423,-151.0,0.00025124,7]
[357518404,1744113048434,-282.367994,0.00025124,7]
[357518405,1744113048443,-2064.086101,0.00025124,7]
[357518406,1744113048453,-2064.086101,0.00025124,7]
[357518407,1744113048463,-151.0,0.00025133,7]
[357518408,1744113048473,-319.93602252,0.0002527,2]
[357518409,1744113048483,-1067.0,0.00025297,2]
[357518410,1744113048493,-159.75984,0.00025322,2]
[357518411,1744113048503,-499.2495,0.00025322,2]
[357518412,1744113048512,-500.0,0.00025364,2]
[357518413,1744113048522,-405.0,0.000254,2]
[357518414,1744113048533,-269.0,0.000254,2]
[357518415,1744113048543,-929.0,0.000254,2]
[357518416,1744113048553,-11662.6604274,0.00025411,2]
[357518417,1744113048563,-151.0,0.00025421,7]
[357518418,1744113048574,-2064.086101,0.00025421,7]
[357518419,1744113048584,-2064.086101,0.00025421,7]
[357518420,1744113048595,-151.0,0.0002543,7]
[357518421,1744113048605,-151.0,0.0002545,7]
[357518422,1744113048615,-2064.086101,0.0002545,7]
[357518423,1744113048625,-2064.086107,0.0002545,7]
[357518424,1744113048634,-151.0,0.0002546,7]
[357518425,1744113048644,-188.997511,0.00025461,7]
[357518426,1744113048654,-632.43353316,0.0002548,2]
[357518427,1744113048665,-23325.3208548,0.0002549,2]
[357518428,1744113048675,-159.75984,0.000255,2]
[357518429,1744113048685,-40000.0,0.000255,3]
[357518430,1744113048695,-778.0,0.000255,2]
[357518431,1744113048704,-166.66,0.00025517,2]
[357518432,1744113048714,-1000.0,0.00025643,2]
[357518433,1744113048724,-874.89,0.00025885,2]
[357518434,1744113048733,-500.0,0.00025945,2]
[357518435,1744113048743,-1000.0,0.00026,2]
[357518436,1744113048753,-11662.6604274,0.00026048,2]
[357518437,1744113048763,-23194.85745228,0.00026058,2]
[357518438,1744113048773,-500.0,0.00026301,2]
[357518439,1744113048784,-166.66,0.00026332,2]
[357518440,1744113048793,-500.0,0.0002637,2]
[357518441,1744113048803,-500.0,0.0002637,2]
[357518442,1744113048813,-500.0,0.0002637,2]
[357518443,1744113048823,-11662.6604274,0.00026412,2]
[357518444,1744113048833,-40000.0,0.000266,4]
[357518445,1744113048843,-1067.0,0.00026628,2]
[357518446,1744113048853,-299.87,0.00026849,2]
[357518447,1744113048864,-394.0,0.00026849,2]
[357518448,1744113048875,-778.0,0.0002687,2]
[357518449,1744113048886,-4000.0,0.000269,9]
[357518450,1744113048897,-450.0,0.00027,2]
[357518451,1744113048907,-166.66,0.00027148,2]
[357518452,1744113048917,-401.54105037,0.00027317,2]
[357518453,1744113048928,-160.4276797,0.00027397,2]
[357518454,1744113048939,-689.97857762,0.00027397,2]
[357518455,1744113048950,-689.97857762,0.00027397,2]
[357518456,1744113048960,-689.97857762,0.00027397,2]
[357518457,1744113048971,-689.97857762,0.00027397,2]
[357518458,1744113048982,-689.97857762,0.00027397,2]
[357518459,1744113048992,-689.97857762,0.00027397,2]
[357518460,1744113049003,-689.97857762,0.00027397,2]
[357518461,1744113049013,-689.97857762,0.00027397,2]
[357518462,1744113049024,-689.97857762,0.00027397,2]
[357518463,1744113049035,-689.97857762,0.00027397,2]
[357518464,1744113049046,-689.97857762,0.00027397,2]
[357518465,1744113049056,-689.97857762,0.00027397,2]
[357518466,1744113049067,-689.97857762,0.00027397,2]
[357518467,1744113049077,-689.97857762,0.00027397,2]
[357518468,1744113049088,-689.97857762,0.00027397,2]
[357518469,1744113049098,-689.97857762,0.00027397,2]
[357518470,1744113049108,-689.97857762,0.00027397,2]
[357518471,1744113049117,-689.97857762,0.00027397,2]
[357518472,1744113049127,-689.97857762,0.00027397,2]
[357518473,1744113049137,-689.97857762,0.00027397,2]
[357518474,1744113049147,-689.97857762,0.00027397,2]
[357518475,1744113049158,-689.97857762,0.00027397,2]
[357518476,1744113049168,-689.97857762,0.00027397,2]
[357518477,1744113049178,-689.97857762,0.00027397,2]
[357518478,1744113049188,-689.97857762,0.00027397,2]
[357518479,1744113049198,-689.97857762,0.00027397,2]
[357518480,1744113049208,-689.97857762,0.00027397,2]
[357518481,1744113049217,-689.97857762,0.00027397,2]
[357518482,1744113049228,-689.97857762,0.00027397,2]
[357518483,1744113049239,-689.97857762,0.00027397,2]
[357518484,1744113049249,-689.97857762,0.00027397,2]
[357518485,1744113049259,-689.97857762,0.00027397,2]
[357518486,1744113049269,-689.97857762,0.00027397,2]
[357518487,1744113049279,-689.97857762,0.00027397,2]
[357518488,1744113049291,-689.97857762,0.00027397,2]
[357518489,1744113049301,-689.97857762,0.00027397,2]
[357518490,1744113049311,-689.97857762,0.00027397,2]
[357518491,1744113049321,-689.97857762,0.00027397,2]
[357518492,1744113049332,-689.97857762,0.00027397,2]
[357518493,1744113049343,-689.97857762,0.00027397,2]
[357518494,1744113049353,-689.97857762,0.00027397,2]
[357518495,1744113049364,-689.97857762,0.00027397,2]
[357518496,1744113049374,-689.97857762,0.00027397,2]
[357518497,1744113049384,-689.97857762,0.00027397,2]
[357518498,1744113049394,-689.97857762,0.00027397,2]
[357518499,1744113049404,-689.97857762,0.00027397,2]
[357518500,1744113049414,-689.97857762,0.00027397,2]
[357518501,1744113049424,-689.97857762,0.00027397,2]
[357518502,1744113049434,-689.97857762,0.00027397,2]
[357518503,1744113049444,-689.97857762,0.00027397,2]
[357518504,1744113049454,-689.97857762,0.00027397,2]
[357518505,1744113049464,-689.97857762,0.00027397,2]
[357518506,1744113049474,-689.97857762,0.00027397,2]
[357518507,1744113049485,-689.97857762,0.00027397,2]
[357518508,1744113049498,-689.97857762,0.00027397,2]
[357518509,1744113049509,-689.97857762,0.00027397,2]
[357518510,1744113049519,-689.97857762,0.00027397,2]
[357518511,1744113049530,-689.97857762,0.00027397,2]
[357518512,1744113049541,-689.97857762,0.00027397,2]
[357518513,1744113049551,-689.97857762,0.00027397,2]
[357518514,1744113049562,-689.97857762,0.00027397,2]
[357518515,1744113049573,-687.51436842,0.00027397,2]
[357518516,1744113049583,-687.51436842,0.00027397,2]
[357518517,1744113049593,-687.51436842,0.00027397,2]
[357518518,1744113049603,-687.51436842,0.00027397,2]
[357518519,1744113049612,-687.51436842,0.00027397,2]
[357518520,1744113049622,-687.51436842,0.00027397,2]
[357518521,1744113049632,-687.51436842,0.00027397,2]
[357518522,1744113049642,-687.51436842,0.00027397,2]
[357518523,1744113049652,-687.51436842,0.00027397,2]
[357518524,1744113049661,-687.51436842,0.00027397,2]
[357518525,1744113049671,-687.51436842,0.00027397,2]
[357518526,1744113049680,-687.51436842,0.00027397,2]
[357518527,1744113049690,-687.51436842,0.00027397,2]
[357518528,1744113049700,-687.51436842,0.00027397,2]
[357518529,1744113049710,-687.51436842,0.00027397,2]
[357518530,1744113049720,-687.51436842,0.00027397,2]
[357518531,1744113049730,-687.51436842,0.00027397,2]
[357518532,1744113049741,-687.51436842,0.00027397,2]
[357518533,1744113049751,-687.51436842,0.00027397,2]
[357518534,1744113049760,-687.51436842,0.00027397,2]
[357518535,1744113049770,-687.51436842,0.00027397,2]
[357518536,1744113049780,-687.51436842,0.00027397,2]
[357518537,1744113049790,-687.51436842,0.00027397,2]
[357518538,1744113049800,-687.51436842,0.00027397,2]
[357518539,1744113049813,-687.51436842,0.00027397,2]
[357518540,1744113049822,-687.51436842,0.00027397,2]
[357518541,1744113049833,-687.51436842,0.00027397,2]
[357518542,1744113049843,-687.51436831,0.00027397,2]
[357518543,1744113049852,-150.0,0.00027397,2]
[357518544,1744113049947,-151.0,0.00027397,7]
[357518545,1744113049959,-151.0,0.00027397,7]
[357518546,1744113049968,-151.0,0.00027397,7]
[357518547,1744113049980,-151.0,0.00027397,7]
[357518548,1744113049990,-224.14,0.00027397,2]
[357518549,1744113050002,-491.09231815,0.000274,2]
[357518550,1744113050015,-40000.0,0.000276,2]
[357518551,1744113050026,-154.81,0.00027633,2]
[357518552,1744113050038,-500.0,0.0002774,2]
[357518553,1744113050047,-500.0,0.0002774,2]
[357518554,1744113050057,-500.0,0.0002774,2]
[357518555,1744113050067,-26975.68897532,0.00027835,2]
[357518556,1744113050076,-1067.0,0.00027959,5]
[357518557,1744113050086,-166.66,0.00027963,2]
[357518558,1744113050096,-168.32,0.00028025,2]
[357518559,1744113050105,-1286.0,0.00028043,2]
[357518560,1744113050115,-2044.0,0.00028043,2]
[357518561,1744113050125,-1326.0,0.00028043,2]
[357518562,1744113050135,-1277.0,0.00028043,2]
[357518563,1744113050145,-1436.0,0.00028043,2]
[357518564,1744113050155,-790.0,0.00028043,2]
[357518565,1744113050164,-907.0,0.00028043,2]
[357518566,1744113050174,-544.0,0.00028043,2]
[357518567,1744113050183,-4141.0,0.00028043,2]
[357518568,1744113050193,-151.0,0.00028043,2]
[357518569,1744113050203,-3957.0,0.00028043,2]
[357518570,1744113050213,-474.73910555,0.00028088,2]
[357518571,1744113050222,-874.89,0.00028149,2]
[357518572,1744113050231,-187.31,0.000282,2]
[357518573,1744113050240,-778.0,0.0002824,2]
[357518574,1744113050250,-1000.0,0.00028492,2]
[357518575,1744113050260,-150.0,0.00028767,2]
[357518576,1744113050270,-224.14,0.00028767,2]
[357518577,1744113050279,-166.66,0.00028779,2]
[357518578,1744113050289,-30782.3371701,0.000288,3]
[357518579,1744113050299,-1000.0,0.00029,3]
[357518580,1744113050308,-1736.71787702,0.00029,2]
[357518581,1744113050318,-500.0,0.00029,2]
[357518582,1744113050328,-1000.0,0.00029,3]
[357518583,1744113050337,-1000.0,0.00029,2]
[357518584,1744113050346,-500.0,0.0002911,2]
[357518585,1744113050355,-500.0,0.0002911,2]
[357518586,1744113050365,-500.0,0.0002911,2]
[357518587,1744113050374,-26975.68897532,0.00029248,2]
[357518588,1744113050383,-1067.0,0.00029357,5]
[357518589,1744113050392,-778.0,0.0002961,2]
[357518590,1744113050402,-401.54105037,0.00029833,2]
[357518591,1744113050412,-294.47551661,0.0003,5]
[357518592,1744113050421,-3731.54354521,0.0003,3]
[357518593,1744113050430,-308.152946,0.0003,2]
[357518594,1744113050439,-2000.0,0.0003,4]
[357518595,1744113050449,-298.28857996,0.00030137,2]
[357518596,1744113050458,-224.14,0.00030137,2]
[357518597,1744113050467,-151.0,0.00030137,7]
[357518598,1744113050478,-151.0,0.00030137,7]
[357518599,1744113050488,-151.0,0.00030137,7]
[357518600,1744113050502,-151.0,0.00030137,7]
[357518601,1744113050511,-159.638588,0.00030137,7]
[357518602,1744113050520,-610.0,0.00030137,2]
[357518603,1744113050530,-1000.0,0.00030252,5]
[357518604,1744113050541,-664.35573358,0.00030252,2]
[357518605,1744113050551,-351.54465372,0.00030252,5]
[357518606,1744113050560,-874.89,0.00030413,2]
[357518607,1744113050575,-500.0,0.00030479,2]
[357518608,1744113050590,-500.0,0.00030479,2]
[357518609,1744113050601,-500.0,0.00030479,2]
[357518610,1744113050611,-26975.68897532,0.00030661,2]
[357518611,1744113050620,-1063.35326684,0.00030825,5]
[357518612,1744113050630,-778.0,0.00030979,2]
[357518613,1744113050641,-550.0,0.00031,2]
[357518614,1744113050651,-1285.0,0.00031043,2]
[357518615,1744113050662,-2044.0,0.00031043,2]
[357518616,1744113050673,-761.075,0.00031043,2]
[357518617,1744113050686,-544.0,0.00031043,2]
[357518618,1744113050703,-4141.0,0.00031043,2]
[357518619,1744113050723,-151.0,0.00031043,2]
[357518620,1744113050740,-3957.0,0.00031043,2]
[357518621,1744113050753,-302.84042234,0.00031128,14]
[357518622,1744113050764,-152.0,0.00031329,3]
[357518623,1744113050776,-1000.0,0.00031341,2]
[357518624,1744113050787,-474.73910555,0.00031386,2]
[357518625,1744113050798,-224.14,0.00031507,2]
[357518626,1744113050808,-800.19,0.00031638,2]
[357518627,1744113050820,-500.0,0.00031849,2]
[357518628,1744113050831,-500.0,0.00031849,2]
[357518629,1744113050842,-500.0,0.00031849,2]
[357518630,1744113050851,-152.0,0.00032024,4]
[357518631,1744113050861,-26975.68897532,0.00032074,2]
[357518632,1744113050871,-1139.25253021,0.0003234,5]
[357518633,1744113050880,-778.0,0.00032349,2]
[357518634,1744113050890,-401.54105037,0.0003235,2]
[357518635,1744113050899,-299.87,0.00032646,2]
[357518636,1744113050908,-394.0,0.00032646,2]
[357518637,1744113050918,-874.89,0.00032677,2]
[357518638,1744113050928,-152.0,0.00032719,5]
[357518639,1744113050938,-224.14,0.00032877,2]
[357518640,1744113050947,-736.99022116,0.00032877,7]
[357518641,1744113050957,-736.99022116,0.00032877,7]
[357518642,1744113050966,-736.99022116,0.00032877,7]
[357518643,1744113050976,-736.99022116,0.00032877,7]
[357518644,1744113050985,-736.99022116,0.00032877,7]
[357518645,1744113050994,-736.99022116,0.00032877,7]
[357518646,1744113051003,-736.99022116,0.00032877,7]
[357518647,1744113051013,-736.99022116,0.00032877,7]
[357518648,1744113051021,-736.99022116,0.00032877,7]
[357518649,1744113051030,-736.99022116,0.00032877,7]
[357518650,1744113051039,-736.99022116,0.00032877,7]
[357518651,1744113051048,-736.99022116,0.00032877,7]
[357518652,1744113051058,-736.99022116,0.00032877,7]
[357518653,1744113051067,-736.99022116,0.00032877,7]
[357518654,1744113051076,-736.99022116,0.00032877,7]
[357518655,1744113051084,-736.99022116,0.00032877,7]
[357518656,1744113051094,-736.99022116,0.00032877,7]
[357518657,1744113051103,-736.99022116,0.00032877,7]
[357518658,1744113051112,-736.99022116,0.00032877,7]
[357518659,1744113051121,-12649.40033536,0.00032877,7]
[357518660,1744113051130,-12649.40033536,0.00032877,7]
[357518661,1744113051139,-12649.40033536,0.00032877,7]
[357518662,1744113051148,-12649.40033536,0.00032877,7]
[357518663,1744113051157,-12649.40033536,0.00032877,7]
[357518664,1744113051166,-12649.40033536,0.00032877,7]
[357518665,1744113051175,-12649.40033536,0.00032877,7]
[357518666,1744113051185,-12649.40033536,0.00032877,7]
[357518667,1744113051194,-1505.49682413,0.00033,2]
[357518668,1744113051204,-510.0,0.00033,2]
[357518669,1744113051213,-1000.0,0.00033,10]
[357518670,1744113051223,-600.0,0.00033,2]
[357518671,1744113051232,-150.0,0.00033,2]
[357518672,1744113051242,-545.99547186,0.00033219,2]
[357518673,1744113051251,-500.0,0.00033219,2]
[357518674,1744113051260,-974.301072,0.00033219,2]
[357518675,1744113051270,-152.0,0.00033415,6]
[357518676,1744113051279,-26975.68897532,0.00033487,2]
[357518677,1744113051289,-778.0,0.00033719,2]
[357518678,1744113051298,-2000.0,0.0003375,4]
[357518679,1744113051308,-187.31,0.0003384,2]
[357518680,1744113051318,-150.0,0.00034,120]
[357518681,1744113051327,-2043.0,0.00034043,2]
[357518682,1744113051336,-151.0,0.00034043,2]
[357518683,1744113051346,-3957.0,0.00034043,2]
[357518684,1744113051356,-152.0,0.0003411,7]
[357518685,1744113051365,-1000.0,0.0003419,2]
[357518686,1744113051374,-150.0,0.00034248,2]
[357518687,1744113051383,-168.267494,0.000343,4]
[357518688,1744113051393,-150.0,0.00034312,2]
[357518689,1744113051402,-150.0,0.00034325,2]
[357518690,1744113051412,-150.0,0.00034356,2]
[357518691,1744113051422,-150.0,0.00034372,2]
[357518692,1744113051431,-150.0,0.00034376,2]
[357518693,1744113051441,-150.0,0.00034388,2]
[357518694,1744113051451,-150.0,0.0003441,2]
[357518695,1744113051460,-150.0,0.0003447,2]
[357518696,1744113051470,-185.0459938,0.00034493,30]
[357518697,1744113051479,-150.0,0.000345,2]
[357518698,1744113051489,-200.0,0.0003452,14]
[357518699,1744113051502,-150.0,0.00034545,2]
[357518700,1744113051513,-150.0,0.00034548,10]
[357518701,1744113051523,-150.0,0.00034573,2]
[357518702,1744113051533,-150.0,0.00034578,2]
[357518703,1744113051542,-150.0,0.00034579,2]
[357518704,1744113051551,-150.0,0.00034586,2]
[357518705,1744113051561,-721.0,0.00034589,2]
[357518706,1744113051570,-185.0459938,0.0003463,30]
[357518707,1744113051581,-150.0,0.00034645,2]
[357518708,1744113051591,-509.449771,0.0003468,48]
[357518709,1744113051600,-500.0,0.0003468,50]
[357518710,1744113051610,-150.0,0.00034681,2]
[357518711,1744113051620,-474.73910555,0.00034684,7]
[357518712,1744113051629,-150.0,0.00034698,2]
[357518713,1744113051639,-150.0,0.00034727,2]
[357518714,1744113051648,-150.0,0.0003476,2]
[357518715,1744113051658,-185.0459938,0.00034767,30]
[357518716,1744113051668,-150.0,0.0003478,2]
[357518717,1744113051678,-150.0,0.00034787,2]
[357518718,1744113051687,-152.0,0.00034805,8]
[357518719,1744113051697,-150.0,0.00034833,2]
[357518720,1744113051708,-150.0,0.00034861,2]
[357518721,1744113051718,-401.54105037,0.00034866,2]
[357518722,1744113051729,-32650.32818089,0.0003489,14]
[357518723,1744113051739,-26975.68897532,0.000349,2]
[357518724,1744113051752,-5400.0,0.000349,12]
[357518725,1744113051763,-185.0459938,0.00034904,30]
[357518726,1744113051775,-150.0,0.00034919,2]
[357518727,1744113051789,-874.89,0.00034941,2]
[357518728,1744113051800,-150.0,0.0003495,2]
[357518729,1744113051811,-300.0,0.00034999,10]
[357518730,1744113051824,-13523.21094439,0.00034999,2]
[357518731,1744113051836,-100235.84799801,0.00035,40]
[357518732,1744113051847,-150.0,0.00035,2]
[357518733,1744113051859,-1000.0,0.00035,3]
[357518734,1744113051870,-2778.42823161,0.00035,4]
[357518735,1744113051925,-138456.59244418,0.00035,4]
[357518736,1744113051936,-280.55,0.00035,2]
[357518737,1744113051946,-650.0,0.00035,2]
[357518738,1744113051956,-506.57862803,0.00035,120]
[357518739,1744113051967,-159.03,0.00035,2]
[357518740,1744113051977,-159.03,0.00035,2]
[357518741,1744113051987,-1000.0,0.00035,5]
[357518742,1744113051997,-1000.0,0.00035,120]
[357518743,1744113052007,-150.0,0.00035007,2]
[357518744,1744113052017,-150.0,0.00035009,2]
[357518745,1744113052026,-150.0,0.00035011,2]
[357518746,1744113052041,-150.0,0.00035024,2]
[357518747,1744113052050,-150.0,0.00035025,2]
[357518748,1744113052060,-185.0459938,0.00035041,30]
[357518749,1744113052070,-150.0,0.00035043,2]
[357518750,1744113052079,-528.66,0.00035068,2]
[357518751,1744113052089,-778.0,0.00035089,2]
[357518752,1744113052099,-150.0,0.00035109,2]
[357518753,1744113052109,-26298.84823212,0.0003511,30]
[357518754,1744113052118,-150.0,0.00035112,2]
[357518755,1744113052127,-150.0,0.00035156,2]
[357518756,1744113052136,-150.0,0.00035174,2]
[357518757,1744113052146,-202.0,0.0003519,2]
[357518758,1744113052155,-500.0,0.000352,54]
[357518759,1744113052164,-500.0,0.000352,56]
[357518760,1744113052173,-185.0459938,0.00035205,30]
[357518761,1744113052183,-150.0,0.00035206,2]
[357518762,1744113052192,-150.0,0.00035216,2]
[357518763,1744113052202,-150.0,0.00035247,2]
[357518764,1744113052211,-150.0,0.00035263,2]
[357518765,1744113052221,-150.0,0.00035266,2]
[357518766,1744113052230,-150.0,0.00035313,2]
[357518767,1744113052240,-150.0,0.00035331,2]
[357518768,1744113052250,-185.0459938,0.00035342,30]
[357518769,1744113052261,-150.0,0.00035361,2]
[357518770,1744113052272,-150.0,0.00035397,2]
[357518771,1744113052283,-150.0,0.00035419,2]
[357518772,1744113052293,-594.00370902,0.00035424,30]
[357518773,1744113052303,-150.0,0.00035426,2]
[357518774,1744113052313,-185.0459938,0.00035479,30]
[357518775,1744113052324,-152.0,0.000355,9]
[357518776,1744113052333,-167.0461733,0.00035516,2]
[357518777,1744113052343,-258.41858024,0.00035516,2]
[357518778,1744113052352,-6606.50238068,0.00035516,2]
[357518779,1744113052363,-186.2490324,0.00035516,7]
[357518780,1744113052374,-210.57292898,0.00035516,2]
[357518781,1744113052384,-310.3794764,0.00035516,2]
[357518782,1744113052394,-150.0,0.00035526,2]
[357518783,1744113052404,-150.0,0.00035537,2]
[357518784,1744113052414,-150.0,0.00035567,2]
[357518785,1744113052424,-150.0,0.00035585,2]
[357518786,1744113052433,-500.0,0.00035592,60]
[357518787,1744113052443,-2360.7614823,0.00035592,2]
[357518788,1744113052452,-122208.691457,0.00035592,2]
[357518789,1744113052463,-5134.1406123,0.00035592,2]
[357518790,1744113052472,-19096.461895,0.00035592,2]
[357518791,1744113052481,-3263.4839475,0.00035592,2]
[357518792,1744113052495,-18739.4398885,0.00035592,2]
[357518793,1744113052504,-53870.35947639,0.000356,7]
[357518794,1744113052513,-150.0,0.00035604,2]
[357518795,1744113052523,-150.0,0.00035605,2]
[357518796,1744113052536,-1103.39785075,0.00035606,2]
[357518797,1744113052546,-163.187704,0.00035616,2]
[357518798,1744113052555,-1431.49,0.00035616,2]
[357518799,1744113052565,-500.0,0.00035616,2]
[357518800,1744113052576,-500.0,0.00035616,2]
[357518801,1744113052585,-151.0,0.00035616,2]
[357518802,1744113052595,-502.21574502,0.00035616,2]
[357518803,1744113052604,-500.0,0.00035616,2]
[357518804,1744113052614,-171.8288511,0.00035616,2]
[357518805,1744113052624,-508.72623372,0.00035616,2]
[357518806,1744113052634,-500.0,0.00035616,2]
[357518807,1744113052643,-500.0,0.00035616,2]
[357518808,1744113052653,-450.8777742,0.00035616,2]
[357518809,1744113052663,-512.3125743,0.00035616,2]
[357518810,1744113052672,-500.0,0.00035616,2]
[357518811,1744113052682,-214.45206265,0.00035616,2]
[357518812,1744113052691,-364.67024969,0.00035616,2]
[357518813,1744113052700,-500.0,0.00035616,2]
[357518814,1744113052710,-511.62076932,0.00035616,2]
[357518815,1744113052720,-506.60185931,0.00035616,2]
[357518816,1744113052729,-500.0,0.00035616,2]
[357518817,1744113052739,-504.19112536,0.00035616,2]
[357518818,1744113052749,-321.47385816,0.00035616,2]
[357518819,1744113052758,-500.0,0.00035616,2]
[357518820,1744113052768,-500.0,0.00035616,2]
[357518821,1744113052778,-501.63426013,0.00035616,2]
[357518822,1744113052791,-601.83,0.00035616,2]
[357518823,1744113052801,-500.0,0.00035616,2]
[357518824,1744113052811,-500.0,0.00035616,2]
[357518825,1744113052820,-500.0,0.00035616,2]
[357518826,1744113052830,-500.0,0.00035616,2]
[357518827,1744113052840,-500.91997259,0.00035616,2]
[357518828,1744113052850,-500.0,0.00035616,2]
[357518829,1744113052861,-500.0,0.00035616,2]
[357518830,1744113052870,-503.3069686,0.00035616,2]
[357518831,1744113052880,-500.0,0.00035616,2]
[357518832,1744113052890,-500.0,0.00035616,2]
[357518833,1744113052899,-500.0,0.00035616,2]
[357518834,1744113052909,-500.0,0.00035616,2]
[357518835,1744113052918,-500.0,0.00035616,2]
[357518836,1744113052927,-500.0,0.00035616,2]
[357518837,1744113052937,-500.0,0.00035616,2]
[357518838,1744113052946,-500.0,0.00035616,2]
[357518839,1744113052955,-500.0,0.00035616,2]
[357518840,1744113052965,-500.0,0.00035616,2]
[357518841,1744113052974,-500.0,0.00035616,2]
[357518842,1744113052984,-500.0,0.00035616,2]
[357518843,1744113052994,-500.0,0.00035616,2]
[357518844,1744113053004,-500.0,0.00035616,2]
[357518845,1744113053014,-996.91,0.00035616,2]
[357518846,1744113053023,-500.0,0.00035616,2]
[357518847,1744113053036,-500.0,0.00035616,2]
[357518848,1744113053046,-500.0,0.00035616,2]
[357518849,1744113053056,-500.0,0.00035616,2]
[357518850,1744113053066,-500.0,0.00035616,2]
[357518851,1744113053076,-500.0,0.00035616,2]
[357518852,1744113053086,-507.88437995,0.00035616,2]
[357518853,1744113053095,-500.0,0.00035616,2]
[357518854,1744113053105,-778.71,0.00035616,2]
[357518855,1744113053116,-507.6706054,0.00035616,2]
[357518856,1744113053125,-688.76,0.00035616,2]
[357518857,1744113053135,-544.46852427,0.00035616,2]
[357518858,1744113053144,-500.0,0.00035616,2]
[357518859,1744113053154,-500.0,0.00035616,2]
[357518860,1744113053163,-516.15533813,0.00035616,2]
[357518861,1744113053173,-404.0644434,0.00035616,2]
[357518862,1744113053182,-500.0,0.00035616,2]
[357518863,1744113053192,-500.0,0.00035616,2]
[357518864,1744113053202,-521.5299826,0.00035616,2]
[357518865,1744113053211,-500.0,0.00035616,2]
[357518866,1744113053221,-500.0,0.00035616,2]
[357518867,1744113053230,-500.0,0.00035616,2]
[357518868,1744113053240,-642.87,0.00035616,2]
[357518869,1744113053249,-504.72198467,0.00035616,2]
[357518870,1744113053258,-500.0,0.00035616,2]
[357518871,1744113053267,-676.45,0.00035616,2]
[357518872,1744113053277,-500.0,0.00035616,2]
[357518873,1744113053289,-500.0,0.00035616,2]
[357518874,1744113053298,-500.0,0.00035616,2]
[357518875,1744113053308,-599.88,0.00035616,2]
[357518876,1744113053318,-500.0,0.00035616,2]
[357518877,1744113053328,-500.0,0.00035616,2]
[357518878,1744113053338,-539.7,0.00035616,2]
[357518879,1744113053347,-500.0,0.00035616,2]
[357518880,1744113053357,-500.0,0.00035616,2]
[357518881,1744113053366,-521.38345122,0.00035616,2]
[357518882,1744113053376,-501.751506,0.00035616,2]
[357518883,1744113053385,-500.0,0.00035616,2]
[357518884,1744113053395,-500.0,0.00035616,2]
[357518885,1744113053404,-500.0,0.00035616,2]
[357518886,1744113053414,-500.0,0.00035616,2]
[357518887,1744113053423,-500.0,0.00035616,2]
[357518888,1744113053432,-500.0,0.00035616,2]
[357518889,1744113053441,-500.0,0.00035616,2]
[357518890,1744113053451,-501.2641717,0.00035616,2]
[357518891,1744113053461,-500.0,0.00035616,2]
[357518892,1744113053471,-500.0,0.00035616,2]
[357518893,1744113053481,-500.0,0.00035616,2]
[357518894,1744113053491,-500.0,0.00035616,2]
[357518895,1744113053503,-511.71239777,0.00035616,2]
[357518896,1744113053513,-500.0,0.00035616,2]
[357518897,1744113053523,-836.43,0.00035616,2]
[357518898,1744113053534,-500.0,0.00035616,2]
[357518899,1744113053544,-500.0,0.00035616,2]
[357518900,1744113053554,-500.0,0.00035616,2]